bitfinex-derivatives/quotes_BTCF0:USTF0_20250509
["timestamp","ask_amount","ask_price","bid_price","bid_amount"]
[1746778519789,0.12193409,103610.0,103600.0,1.38549882]
[1746778519987,0.31493669,103610.0,103600.0,0.56535895]
[1746778520187,0.22113409,103610.0,103600.0,0.68469882]
[1746778520693,0.22113409,103610.0,103600.0,0.68569882]
[1746778520694,0.0992,103610.0,103600.0,0.68569882]
[1746778521090,0.0992,103610.0,103600.0,0.68579311]
[1746778521897,0.0992,103610.0,103600.0,1.04659311]
[1746778522789,0.0992,103610.0,103600.0,0.68579311]
[1746778522996,0.0992,103610.0,103600.0,0.68597614]
[1746778523395,0.0992,103610.0,103600.0,0.68597276]
[1746778523995,0.0992,103610.0,103600.0,1.46267276]
[1746778525495,0.0992,103610.0,103600.0,1.34333289]
[1746778525697,0.0992,103610.0,103600.0,1.46267276]
[1746778526797,0.0992,103610.0,103600.0,1.10187276]
[1746778527289,0.2922026,103610.0,103600.0,0.51203289]
[1746778527500,0.46,103610.0,103600.0,0.51203289]
[1746778527699,0.46,103610.0,103600.0,0.55873289]
[1746778527894,0.46,103610.0,103600.0,0.67807276]
[1746778528091,0.0992,103610.0,103600.0,0.67807276]
[1746778528896,0.54144409,103620.0,103610.0,0.1930026]
[1746778529100,0.57804409,103620.0,103610.0,0.46193373]
[1746778529500,0.57804409,103620.0,103610.0,0.55845416]
[1746778529701,0.21724409,103620.0,103610.0,0.55845416]
[1746778530298,0.21824409,103620.0,103610.0,0.55845416]
[1746778530497,0.57904409,103620.0,103610.0,0.55845416]
[1746778531003,0.21824409,103620.0,103610.0,0.43911429]
[1746778531208,0.21824409,103620.0,103610.0,0.55845416]
[1746778531800,0.22024409,103620.0,103610.0,0.55945416]
[1746778532396,0.21824409,103620.0,103610.0,0.55945416]
[1746778532903,0.21503683,103620.0,103610.0,0.57945416]
[1746778533093,0.16823683,103620.0,103610.0,0.73945416]
[1746778533805,0.16823683,103620.0,103610.0,1.10025416]
[1746778534203,0.16823683,103620.0,103610.0,1.10035859]
[1746778534405,0.16823683,103620.0,103610.0,1.61625859]
[1746778534599,0.16823683,103620.0,103610.0,1.51625859]
[1746778534793,0.16823683,103620.0,103610.0,3.11625859]
[1746778535003,0.16823683,103620.0,103610.0,3.48625859]
[1746778535300,0.14473411,103630.0,103620.0,0.1929839]
[1746778535497,0.14473411,103630.0,103620.0,1.12665933]
[1746778535691,0.08968211,103630.0,103620.0,1.54255933]
[1746778535900,1e-08,103630.0,103620.0,1.91348449]
[1746778536094,1e-08,103630.0,103620.0,2.08829283]
[1746778536504,0.00300001,103630.0,103620.0,2.08829283]
[1746778536908,1e-08,103630.0,103620.0,2.08829283]
[1746778537505,1e-08,103630.0,103620.0,1.96895296]
[1746778538008,0.001,103640.0,103630.0,0.1929653]
[1746778538303,0.001,103640.0,103630.0,1.31403155]
[1746778538706,0.001,103640.0,103630.0,2.91052404]
[1746778539097,0.001,103640.0,103630.0,3.07052404]
[1746778539306,0.001,103640.0,103630.0,2.95118417]
[1746778539505,0.0458,103640.0,103630.0,2.95118417]
[1746778540005,0.0458,103640.0,103630.0,2.95218417]
[1746778540403,0.0458,103640.0,103630.0,3.05218417]
[1746778540601,0.0458,103640.0,103630.0,2.95218417]
[1746778540800,0.0458,103640.0,103630.0,2.59138417]
[1746778541005,0.0891,103640.0,103630.0,2.59138417]
[1746778541505,0.76218657,103640.0,103630.0,2.44086182]
[1746778541695,0.6428467,103640.0,103630.0,0.89246182]
[1746778541896,0.6428467,103640.0,103630.0,0.47656182]
[1746778541897,0.76218657,103640.0,103630.0,0.47656182]
[1746778542101,0.76218657,103640.0,103630.0,0.31656182]
[1746778543103,0.76218657,103640.0,103630.0,0.36196182]
[1746778543914,0.56923987,103640.0,103630.0,0.36196182]
[1746778544208,0.4499,103640.0,103630.0,0.36196182]
[1746778544804,0.4499,103640.0,103630.0,0.40506182]
[1746778546601,0.0891,103640.0,103630.0,0.88520169]
[1746778546810,0.0891,103640.0,103630.0,0.57970169]
[1746778547110,0.0891,103640.0,103630.0,0.62036182]
[1746778547610,0.001,103640.0,103630.0,0.73970169]
[1746778547809,0.001,103640.0,103630.0,1.03626182]
[1746778548009,0.001,103640.0,103630.0,1.15560169]
[1746778548213,0.001,103640.0,103630.0,1.15561909]
[1746778548406,0.001,103640.0,103630.0,2.65561909]
[1746778548711,0.001,103640.0,103630.0,2.75561909]
[1746778548712,0.09887622,103640.0,103630.0,2.75561909]
[1746778549305,0.09887622,103640.0,103630.0,2.63627922]
[1746778549504,0.09887622,103640.0,103630.0,2.75561909]
[1746778550016,0.09887622,103640.0,103630.0,2.5362792]
[1746778550212,0.09887622,103640.0,103630.0,2.65561907]
[1746778550613,0.09887622,103640.0,103630.0,2.75561907]
[1746778550810,0.09887622,103640.0,103630.0,2.65561907]
[1746778551209,0.05034292,103640.0,103630.0,3.11641907]
[1746778551408,0.05034292,103640.0,103630.0,3.50641907]
[1746778552010,0.05034292,103640.0,103630.0,3.40641907]
[1746778552615,0.05034292,103640.0,103630.0,3.40641849]
[1746778553415,0.10391,103650.0,103640.0,0.1929467]
[1746778553615,0.10391,103650.0,103640.0,0.28975919]
[1746778553818,0.10391,103650.0,103640.0,0.70565919]
[1746778554113,0.10391,103650.0,103640.0,0.80215168]
[1746778554313,0.10391,103650.0,103640.0,0.81696002]
[1746778554515,0.10391,103650.0,103640.0,0.40106002]
[1746778554713,0.10491,103650.0,103640.0,0.52039989]
[1746778555418,0.01841,103650.0,103640.0,0.52039989]
[1746778555610,0.06471,103650.0,103640.0,0.53039973]
[1746778556015,0.06471,103650.0,103640.0,0.53039969]
[1746778556216,0.10941,103650.0,103640.0,0.53039969]
[1746778559605,1e-07,103660.0,103650.0,0.1929281]
[1746778559806,1e-07,103660.0,103650.0,0.49378026]
[1746778560316,0.3608001,103660.0,103650.0,0.60507178]
[1746778560512,0.3608001,103660.0,103650.0,0.48573191]
[1746778561110,0.3608001,103660.0,103650.0,0.44573191]
[1746778561317,0.5537096,103660.0,103650.0,0.40243191]
[1746778561518,0.3608001,103660.0,103650.0,0.35943191]
[1746778561916,0.0010001,103660.0,103650.0,0.52177178]
[1746778562107,0.0020001,103660.0,103650.0,1.08887178]
[1746778562315,0.0020001,103660.0,103650.0,1.24887178]
[1746778562514,0.0020001,103660.0,103650.0,1.23406344]
[1746778563214,0.0020001,103660.0,103650.0,1.13406344]
[1746778563420,0.0020001,103660.0,103650.0,0.77326344]
[1746778563617,0.0020001,103660.0,103650.0,0.78810956]
[1746778564428,0.0020001,103660.0,103650.0,0.66876969]
[1746778564621,0.1949096,103660.0,103650.0,0.66876969]
[1746778564924,0.2826096,103660.0,103650.0,0.62246969]
[1746778565229,0.6434096,103660.0,103650.0,0.40246969]
[1746778565411,0.4505001,103660.0,103650.0,0.40246969]
[1746778565612,0.0897001,103660.0,103650.0,0.40246875]
[1746778565824,0.0020001,103660.0,103650.0,0.52180862]
[1746778566023,0.0020001,103660.0,103650.0,0.46246875]
[1746778566222,0.3628001,103660.0,103650.0,0.5669625]
[1746778566716,0.0020001,103660.0,103650.0,0.5669625]
[1746778566916,0.0020001,103660.0,103650.0,0.9277625]
[1746778567116,0.0020001,103660.0,103650.0,1.0877625]
[1746778567520,0.0020001,103660.0,103650.0,1.08776169]
[1746778567711,0.0020001,103660.0,103650.0,0.72696169]
[1746778568213,0.0020001,103660.0,103650.0,0.60762182]
[1746778568625,0.0452001,103660.0,103650.0,0.72696169]
[1746778568926,0.0452001,103660.0,103650.0,1.14286169]
[1746778569317,0.0020001,103660.0,103650.0,1.14286169]
[1746778569517,0.0020001,103660.0,103650.0,1.50366169]
[1746778569922,0.0020001,103660.0,103650.0,1.15755424]
[1746778570221,0.00332784,103660.0,103650.0,1.15755424]
[1746778571319,0.55703734,103660.0,103650.0,1.15755424]
[1746778571520,0.41012784,103660.0,103650.0,1.15755424]
[1746778571827,0.04932784,103660.0,103650.0,1.15755424]
[1746778572128,0.41012784,103660.0,103650.0,1.15755424]
[1746778572620,0.60303734,103660.0,103650.0,0.97821437]
[1746778572826,0.45582784,103660.0,103650.0,1.09755424]
[1746778573126,0.00332784,103660.0,103650.0,0.93755424]
[1746778574525,0.16570413,103660.0,103650.0,0.93755424]
[1746778574825,0.16570413,103660.0,103650.0,0.93755473]
[1746778576528,0.35861363,103660.0,103650.0,0.93755473]
[1746778576729,0.76581363,103660.0,103650.0,0.93755473]
[1746778576933,0.81221363,103660.0,103650.0,0.93755473]
[1746778577227,0.81221363,103660.0,103650.0,0.92286218]
[1746778577824,0.9315535,103660.0,103650.0,0.10779421]
[1746778578022,0.9315535,103660.0,103650.0,0.01131103]
[1746778578217,0.76584937,103660.0,103650.0,0.20423913]
[1746778578626,0.6465095,103660.0,103650.0,0.24863913]
[1746778578826,0.6465095,103660.0,103650.0,0.30790967]
[1746778579133,0.6465095,103660.0,103650.0,0.26350967]
[1746778579527,0.76584937,103660.0,103650.0,0.26350967]
[1746778580334,0.76584937,103660.0,103650.0,0.26351187]
[1746778582225,0.76584937,103660.0,103650.0,0.26351186]
[1746778582531,0.6465095,103660.0,103650.0,0.26351186]
[1746778582935,0.6465095,103660.0,103650.0,0.30901186]
[1746778583433,0.6465095,103660.0,103650.0,0.26351186]
[1746778585631,0.83335145,103660.0,103650.0,0.26351186]
[1746778585934,0.83335145,103660.0,103650.0,0.30581186]
[1746778586128,0.95269132,103660.0,103650.0,0.30581186]
[1746778586428,0.83335145,103660.0,103650.0,0.30581186]
[1746778588935,0.68639375,103660.0,103650.0,0.30581186]
[1746778589440,0.68639375,103660.0,103650.0,0.30581182]
[1746778591243,0.68880375,103660.0,103650.0,0.30581182]
[1746778592742,0.83576145,103660.0,103650.0,0.30581182]
[1746778594040,0.83576145,103660.0,103650.0,0.35071182]
[1746778594234,0.95510132,103660.0,103650.0,0.35071182]
[1746778594743,0.83576145,103660.0,103650.0,0.35071182]
[1746778597340,0.95510132,103660.0,103650.0,0.26351182]
[1746778597539,1.05157332,103660.0,103650.0,0.02618372]
[1746778597946,0.93223345,103660.0,103650.0,0.21911182]
[1746778598249,1.09223345,103660.0,103650.0,0.21911182]
[1746778598544,1.21157332,103660.0,103650.0,0.21911182]
[1746778599146,1.05157332,103660.0,103650.0,0.21911182]
[1746778599445,0.93223345,103660.0,103650.0,0.21911182]
[1746778599646,1.05157332,103660.0,103650.0,0.21911182]
[1746778600048,1.05157332,103660.0,103650.0,0.02618372]
[1746778600247,1.21157332,103660.0,103650.0,0.21911224]
[1746778600842,1.21157332,103660.0,103650.0,0.02618414]
[1746778601039,1.21157332,103660.0,103650.0,0.26351224]
[1746778601950,1.21157332,103660.0,103650.0,0.21911224]
[1746778602137,0.93223345,103660.0,103650.0,0.21911224]
[1746778602341,1.05157332,103660.0,103650.0,0.21911224]
[1746778602648,1.05157332,103660.0,103650.0,0.02618414]
[1746778602840,1.05157332,103660.0,103650.0,0.21911224]
[1746778603241,1.05157332,103660.0,103650.0,0.26201224]
[1746778605153,1.05157332,103660.0,103650.0,0.06908414]
[1746778605650,0.90461562,103660.0,103650.0,0.26201258]
[1746778606149,1.06461562,103660.0,103650.0,0.26201258]
[1746778607253,0.90461562,103660.0,103650.0,0.26201258]
[1746778607750,0.80814362,103660.0,103650.0,0.02618448]
[1746778607953,0.68880375,103660.0,103650.0,0.02618448]
[1746778608348,0.80814362,103660.0,103650.0,0.07298448]
[1746778609150,0.80814362,103660.0,103650.0,0.07298439]
[1746778610150,0.96814362,103660.0,103650.0,0.07298439]
[1746778611245,0.80814362,103660.0,103650.0,0.07298439]
[1746778612753,0.80814362,103660.0,103650.0,0.07298434]
[1746778612951,0.80814362,103660.0,103650.0,0.31291244]
[1746778613145,0.80814362,103660.0,103650.0,0.11998434]
[1746778613851,0.80814362,103660.0,103650.0,0.31291244]
[1746778614049,0.80814362,103660.0,103650.0,0.36491244]
[1746778616253,0.80814362,103660.0,103650.0,0.17198434]
[1746778616859,0.97685086,103660.0,103650.0,0.17198434]
[1746778617150,0.97685086,103660.0,103650.0,0.11998434]
[1746778618152,1.19266273,103660.0,103650.0,1e-08]
[1746778618652,0.95398299,103660.0,103650.0,1e-08]
[1746778618849,1.19266273,103660.0,103650.0,1e-08]
[1746778619153,1.35266273,103660.0,103650.0,1e-08]
[1746778620143,0.1929467,103640.0,103630.0,0.05189475]
[1746778620455,1.29812657,103640.0,103630.0,0.10129475]
[1746778620659,1.39362657,103640.0,103630.0,0.05229475]
[1746778620845,0.1930026,103610.0,103600.0,0.24416322]
[1746778621046,1.03394247,103610.0,103600.0,0.24416322]
[1746778621245,1.03394247,103610.0,103600.0,0.45466322]
[1746778621446,1.0148026,103610.0,103600.0,0.45466322]
[1746778621746,0.9663026,103610.0,103600.0,0.57400309]
[1746778622149,0.9663026,103610.0,103600.0,0.50196322]
[1746778622550,0.97701306,103610.0,103600.0,0.50796322]
[1746778623156,0.97701306,103610.0,103600.0,0.62730309]
[1746778623547,0.9166026,103610.0,103600.0,0.63530309]
[1746778623950,0.9166026,103610.0,103600.0,0.68350309]
[1746778624446,1.07909284,103610.0,103600.0,0.68350309]
[1746778624953,1.07909284,103610.0,103600.0,0.56416322]
[1746778625158,1.08866548,103610.0,103600.0,0.68350309]
[1746778625947,1.08866548,103610.0,103600.0,0.56416322]
[1746778626150,1.08866548,103610.0,103600.0,0.68350309]
[1746778626661,1.08866548,103610.0,103600.0,0.56416322]
[1746778626961,1.07909284,103610.0,103600.0,0.56416322]
[1746778627961,1.07909284,103610.0,103600.0,0.68350309]
[1746778628261,1.07909284,103610.0,103600.0,0.56416322]
[1746778628761,1.01459944,103610.0,103600.0,0.68350309]
[1746778629464,1.01459944,103610.0,103600.0,0.51590982]
[1746778629659,1.01459944,103610.0,103600.0,0.22739572]
[1746778629660,1.36299931,103610.0,103600.0,0.22739572]
[1746778629864,0.3378145,103600.0,103590.0,0.1016]
[1746778630062,0.1930398,103590.0,103580.0,0.2423207]
[1746778630362,0.6561398,103590.0,103580.0,0.3425207]
[1746778630954,0.6561398,103590.0,103580.0,0.35761472]
[1746778632261,0.6561398,103590.0,103580.0,0.36839]
[1746778632453,0.6561398,103590.0,103580.0,0.37039]
[1746778632655,0.75413664,103590.0,103580.0,0.37039]
[1746778632961,0.75513664,103590.0,103580.0,0.42276533]
[1746778633347,0.45979684,103590.0,103580.0,0.53125459]
[1746778633947,0.09899684,103590.0,103580.0,1.01859366]
[1746778634164,0.09899684,103590.0,103580.0,1.17859366]
[1746778634663,0.09799684,103590.0,103580.0,1.17459366]
[1746778634862,0.09799684,103590.0,103580.0,1.59249366]
[1746778635253,0.09799684,103590.0,103580.0,1.59149366]
[1746778635561,0.29103664,103590.0,103580.0,1.47215379]
[1746778635755,0.65183664,103590.0,103580.0,1.20069366]
[1746778635958,0.70013664,103590.0,103580.0,1.20069366]
[1746778636157,0.6021398,103590.0,103580.0,1.20069366]
[1746778636661,0.6021398,103590.0,103580.0,1.08135379]
[1746778638158,0.6021398,103590.0,103580.0,1.20069366]
[1746778638459,0.6021398,103590.0,103580.0,1.08135379]
[1746778638664,0.6524398,103590.0,103580.0,1.08135379]
[1746778638965,0.6524398,103590.0,103580.0,0.98481472]
[1746778639351,0.77177967,103590.0,103580.0,0.74350772]
[1746778639557,0.6524398,103590.0,103580.0,0.93656622]
[1746778639855,0.7000398,103590.0,103580.0,0.93656622]
[1746778640167,0.81937967,103590.0,103580.0,0.11880772]
[1746778640354,0.1930771,103570.0,103560.0,0.21069631]
[1746778640663,0.9146771,103570.0,103560.0,0.36239631]
[1746778640852,0.9146771,103570.0,103560.0,0.58796407]
[1746778640853,0.048,103570.0,103560.0,0.58796407]
[1746778641056,0.71081785,103580.0,103570.0,0.1930771]
[1746778641262,0.75881785,103580.0,103570.0,0.57451697]
[1746778641456,0.75881785,103580.0,103570.0,0.4551771]
[1746778642163,0.85681469,103580.0,103570.0,0.2951771]
[1746778642562,0.85681469,103580.0,103570.0,0.2971771]
[1746778643167,0.80701469,103580.0,103570.0,0.4601771]
[1746778643961,0.85451469,103580.0,103570.0,0.4601771]
[1746778644168,0.85451469,103580.0,103570.0,0.3001771]
[1746778644367,0.50779684,103580.0,103570.0,0.51606536]
[1746778644567,0.65285534,103580.0,103570.0,0.51606536]
[1746778644762,0.65285534,103580.0,103570.0,0.39672549]
[1746778644962,0.5548585,103580.0,103570.0,0.51606536]
[1746778645262,0.5548585,103580.0,103570.0,0.55672549]
[1746778645572,0.5548585,103580.0,103570.0,0.67606536]
[1746778645872,0.5548585,103580.0,103570.0,0.55672549]
[1746778646166,0.001,103580.0,103570.0,0.67606536]
[1746778646373,0.001,103580.0,103570.0,1.03686536]
[1746778647276,0.5548585,103580.0,103570.0,0.3580771]
[1746778647579,0.001,103580.0,103570.0,0.67386536]
[1746778647867,0.1940585,103580.0,103570.0,0.67386536]
[1746778648374,0.5548585,103580.0,103570.0,0.67386536]
[1746778648976,0.1940585,103580.0,103570.0,0.67401193]
[1746778649175,0.5548585,103580.0,103570.0,0.67401193]
[1746778649671,0.001,103580.0,103570.0,0.67401193]
[1746778649871,0.1940585,103580.0,103570.0,0.67401193]
[1746778650175,0.1940585,103580.0,103570.0,0.55467206]
[1746778650377,0.1940585,103580.0,103570.0,0.67401193]
[1746778651265,0.62830301,103580.0,103570.0,0.55467206]
[1746778651468,0.07444451,103580.0,103570.0,0.55467206]
[1746778651766,0.07444451,103580.0,103570.0,1.09481193]
[1746778652675,0.07444451,103580.0,103570.0,1.10990447]
[1746778652872,0.07444451,103580.0,103570.0,1.52580447]
[1746778653276,0.07444451,103580.0,103570.0,3.02580447]
[1746778654472,0.07444451,103580.0,103570.0,1.52580447]
[1746778654673,0.07685451,103580.0,103570.0,1.52580447]
[1746778654868,0.07685451,103580.0,103570.0,1.4064646]
[1746778655077,0.07685451,103580.0,103570.0,1.52580447]
[1746778659278,0.07685451,103580.0,103570.0,1.4064646]
[1746778659479,0.07685451,103580.0,103570.0,1.52580447]
[1746778659875,1e-08,103580.0,103570.0,1.62235247]
[1746778660179,0.09799684,103590.0,103580.0,0.1930585]
[1746778660477,9e-08,103600.0,103590.0,0.2930398]
[1746778660671,9e-08,103600.0,103590.0,3.11844172]
[1746778660879,9e-08,103600.0,103590.0,3.35712146]
[1746778661075,9e-08,103600.0,103590.0,3.39353426]
[1746778661381,0.1422993,103610.0,103600.0,0.1930212]
[1746778661580,0.1422993,103610.0,103600.0,0.51243678]
[1746778661776,0.1926993,103610.0,103600.0,0.63177665]
[1746778661986,0.1926993,103610.0,103600.0,0.72829708]
[1746778662172,0.1926993,103610.0,103600.0,0.78404975]
[1746778662482,0.1926993,103610.0,103600.0,0.90338962]
[1746778662674,0.1926993,103610.0,103600.0,1.26418962]
[1746778662881,0.1926993,103610.0,103600.0,0.90338962]
[1746778663477,0.1926993,103610.0,103600.0,0.78604975]
[1746778664083,0.1926993,103610.0,103600.0,1.14684975]
[1746778664386,0.1926993,103610.0,103600.0,1.14984975]
[1746778664776,0.1926993,103610.0,103600.0,1.56574975]
[1746778665987,0.86584177,103610.0,103600.0,1.04494975]
[1746778666179,0.8440019,103610.0,103600.0,0.89684975]
[1746778666376,0.96334177,103610.0,103600.0,0.80032932]
[1746778666683,0.82104247,103610.0,103600.0,0.80032932]
[1746778667277,0.7017026,103610.0,103600.0,0.64032932]
[1746778667689,0.82104247,103610.0,103600.0,0.64032932]
[1746778668091,0.7017026,103610.0,103600.0,0.64032932]
[1746778668474,0.82104247,103610.0,103600.0,0.22442932]
[1746778670286,0.82104247,103610.0,103600.0,0.22443231]
[1746778671085,0.7017026,103610.0,103600.0,0.22443231]
[1746778671590,0.82104247,103610.0,103600.0,0.22443231]
[1746778671784,0.82304247,103610.0,103600.0,0.22143231]
[1746778671985,0.82604247,103610.0,103600.0,0.02641111]
[1746778672292,0.82604247,103610.0,103600.0,0.21943294]
[1746778673091,0.98604247,103610.0,103600.0,0.2194329]
[1746778673684,0.8667026,103610.0,103600.0,0.2194329]
[1746778674191,0.7067026,103610.0,103600.0,0.2194329]
[1746778675190,0.82604247,103610.0,103600.0,0.2194329]
[1746778676292,0.7067026,103610.0,103600.0,0.2194329]
[1746778676797,0.82604247,103610.0,103600.0,0.2194329]
[1746778676997,0.7067026,103610.0,103600.0,0.2194329]
[1746778677695,0.7067026,103610.0,103600.0,0.20811374]
[1746778677893,0.7067026,103610.0,103600.0,0.2194326]
[1746778678089,0.7067026,103610.0,103600.0,0.20811374]
[1746778678291,0.7067026,103610.0,103600.0,0.2194327]
[1746778679083,0.7067026,103610.0,103600.0,0.21943262]
[1746778679292,0.7067026,103610.0,103600.0,0.21943204]
[1746778680799,0.7067026,103610.0,103600.0,0.26783253]
[1746778680994,0.5137,103610.0,103600.0,0.48369283]
[1746778681290,0.4633,103610.0,103600.0,0.74639283]
[1746778681494,0.6563026,103610.0,103600.0,0.62705296]
[1746778681892,0.6563026,103610.0,103600.0,0.74639283]
[1746778682087,0.4633,103610.0,103600.0,0.7463913]
[1746778682293,0.0554,103610.0,103600.0,0.62705143]
[1746778682492,0.0524,103610.0,103600.0,0.7563913]
[1746778682699,0.003,103610.0,103600.0,0.7563913]
[1746778682895,0.001,103610.0,103600.0,1.1722913]
[1746778683090,0.001,103610.0,103600.0,1.1732913]
[1746778683799,0.001,103610.0,103600.0,1.18313544]
[1746778684292,0.001,103610.0,103600.0,1.06379557]
[1746778684495,0.001,103610.0,103600.0,1.18313544]
[1746778684888,0.001,103610.0,103600.0,1.06379557]
[1746778685101,0.001,103610.0,103600.0,1.18313544]
[1746778685303,0.001,103610.0,103600.0,1.06379557]
[1746778685507,0.001,103610.0,103600.0,1.18313452]
[1746778686705,0.6608952,103620.0,103610.0,0.1930026]
[1746778686904,0.00541,103620.0,103610.0,0.66511894]
[1746778687112,0.00541,103620.0,103610.0,0.78445881]
[1746778687411,0.00541,103620.0,103610.0,1.04096886]
[1746778687610,0.00541,103620.0,103610.0,1.0560614]
[1746778687913,0.00541,103620.0,103610.0,0.6952614]
[1746778687914,0.5611939,103620.0,103610.0,0.6952614]
[1746778688206,0.6158939,103620.0,103610.0,0.6952614]
[1746778688700,0.6158939,103620.0,103610.0,0.99182153]
[1746778688902,0.6645939,103620.0,103610.0,0.99182153]
[1746778689309,0.6625939,103620.0,103610.0,0.99182153]
[1746778689504,0.77993377,103620.0,103610.0,0.94112153]
[1746778689709,0.6605939,103620.0,103610.0,0.84461041]
[1746778690106,0.2997939,103620.0,103610.0,1.01315028]
[1746778690311,0.2997939,103620.0,103610.0,0.85315028]
[1746778691005,0.2997939,103620.0,103610.0,0.73381041]
[1746778691210,0.6605939,103620.0,103610.0,0.73381041]
[1746778694312,0.6605939,103620.0,103610.0,0.73381143]
[1746778694605,0.6605939,103620.0,103610.0,0.8531513]
[1746778695011,0.6605939,103620.0,103610.0,0.4372513]
[1746778695919,0.6605939,103620.0,103610.0,0.43725106]
[1746778696415,0.6605939,103620.0,103610.0,0.31791119]
[1746778697611,0.2997939,103620.0,103610.0,0.31791119]
[1746778697816,0.2997939,103620.0,103610.0,0.43725106]
[1746778698013,0.6605939,103620.0,103610.0,0.31791119]
[1746778698218,0.36721,103620.0,103610.0,0.43725106]
[1746778698421,0.6084939,103620.0,103610.0,0.43725106]
[1746778698613,0.6084939,103620.0,103610.0,0.31791119]
[1746778698913,0.6084939,103620.0,103610.0,0.43725106]
[1746778698914,0.05471,103620.0,103610.0,0.43725106]
[1746778699110,0.05471,103620.0,103610.0,0.69376218]
[1746778699309,0.00641,103620.0,103610.0,0.81310205]
[1746778699515,0.00641,103620.0,103610.0,1.55390205]
[1746778699721,0.00641,103620.0,103610.0,1.31522231]
[1746778699917,0.00641,103620.0,103610.0,1.43456218]
[1746778701119,0.00641,103620.0,103610.0,2.81522231]
[1746778701311,0.00641,103620.0,103610.0,2.22376218]
[1746778701516,0.06001,103620.0,103610.0,0.72376218]
[1746778701911,0.42081,103620.0,103610.0,2.22376218]
[1746778702113,0.06001,103620.0,103610.0,2.22376218]
[1746778702416,0.06001,103620.0,103610.0,2.58456218]
[1746778702617,0.06001,103620.0,103610.0,1.08456218]
[1746778702813,0.2529939,103620.0,103610.0,0.60442231]
[1746778703008,0.3045939,103620.0,103610.0,0.60442148]
[1746778703209,0.42393377,103620.0,103610.0,0.57442148]
[1746778703411,0.78473377,103620.0,103610.0,0.57442148]
[1746778703717,0.6137939,103620.0,103610.0,0.57442148]
[1746778704120,0.3024939,103620.0,103610.0,0.57442148]
[1746778706507,0.3024939,103620.0,103610.0,0.57433659]
[1746778707616,0.78263377,103620.0,103610.0,0.47782547]
[1746778707812,0.78263377,103620.0,103610.0,0.42862547]
[1746778708017,0.10951,103620.0,103610.0,0.42862547]
[1746778708219,0.10951,103620.0,103610.0,0.41433659]
[1746778708518,0.3024939,103620.0,103610.0,0.41433659]
[1746778708719,0.6632939,103620.0,103610.0,0.41433659]
[1746778709222,0.6632939,103620.0,103610.0,0.57433659]
[1746778709619,0.10951,103620.0,103610.0,0.57433659]
[1746778709811,0.6632939,103620.0,103610.0,0.57433659]
[1746778710017,0.3024939,103620.0,103610.0,0.57442213]
[1746778710219,0.6632939,103620.0,103610.0,0.57442213]
[1746778710419,0.3024939,103620.0,103610.0,0.57442213]
[1746778711120,0.6632939,103620.0,103610.0,0.57442213]
[1746778711423,0.6608839,103620.0,103610.0,0.57442213]
[1746778712225,0.3000839,103620.0,103610.0,0.57442213]
[1746778712520,0.6608839,103620.0,103610.0,0.57442213]
[1746778712824,0.0576,103620.0,103610.0,0.57442213]
[1746778713515,0.2505839,103620.0,103610.0,0.693762]
[1746778713926,0.0576,103620.0,103610.0,0.57442213]
[1746778714219,0.0576,103620.0,103610.0,0.723762]
[1746778714420,0.004,103620.0,103610.0,0.723762]
[1746778714611,0.3948545,103630.0,103620.0,0.1929839]
[1746778714926,0.7556545,103630.0,103620.0,0.36239977]
[1746778715128,0.7580645,103630.0,103620.0,0.52239977]
[1746778715330,0.7580645,103630.0,103620.0,0.61890084]
[1746778715621,0.3972645,103630.0,103620.0,0.63399338]
[1746778715825,0.7600645,103630.0,103620.0,0.63399338]
[1746778716821,0.4012645,103630.0,103620.0,0.63399338]
[1746778717123,0.7620645,103630.0,103620.0,0.63399338]
[1746778718827,0.88140437,103630.0,103620.0,0.63399338]
[1746778719526,0.7250645,103630.0,103620.0,0.63399338]
[1746778719729,0.84440437,103630.0,103620.0,0.64820282]
[1746778719924,0.84440437,103630.0,103620.0,0.44590102]
[1746778720230,0.84440437,103630.0,103620.0,0.28590102]
[1746778721425,0.84440437,103630.0,103620.0,0.33660102]
[1746778722231,0.7250645,103630.0,103620.0,0.33660102]
[1746778723519,0.43561,103630.0,103620.0,0.33660102]
[1746778723921,0.43561,103630.0,103620.0,0.55244269]
[1746778723922,0.05831,103630.0,103620.0,0.55244269]
[1746778724118,0.05831,103630.0,103620.0,1.07324269]
[1746778724522,0.2512753,103630.0,103620.0,0.95390282]
[1746778724929,0.2997753,103630.0,103620.0,0.95390282]
[1746778725124,0.2977753,103630.0,103620.0,0.59310282]
[1746778725325,0.2997753,103630.0,103620.0,0.59310282]
[1746778725733,0.2997753,103630.0,103620.0,0.59310224]
[1746778725929,0.2977753,103630.0,103620.0,0.59310224]
[1746778726126,0.05431,103630.0,103620.0,0.59310224]
[1746778726433,0.2472753,103630.0,103620.0,0.59310224]
[1746778730130,0.2472753,103630.0,103620.0,0.71244211]
[1746778730337,0.2472753,103630.0,103620.0,0.59310224]
[1746778730936,0.05431,103630.0,103620.0,0.59310224]
[1746778731438,0.2472753,103630.0,103620.0,0.59310224]
[1746778732228,0.6080753,103630.0,103620.0,0.59310224]
[1746778733237,0.2472753,103630.0,103620.0,0.59310224]
[1746778733640,0.2472753,103630.0,103620.0,0.58178768]
[1746778734235,0.05431,103630.0,103620.0,1.06192755]
[1746778734430,0.05431,103630.0,103620.0,0.70112755]
[1746778734846,0.2472753,103630.0,103620.0,0.70112755]
[1746778735341,0.2472753,103630.0,103620.0,0.58178768]
[1746778735836,0.2472753,103630.0,103620.0,0.94258768]
[1746778736035,0.2472753,103630.0,103620.0,0.58178768]
[1746778736736,0.2997753,103630.0,103620.0,0.58178768]
[1746778737235,0.05431,103630.0,103620.0,0.69112755]
[1746778737439,0.05431,103630.0,103620.0,1.05192755]
[1746778737641,0.2472753,103630.0,103620.0,0.70197746]
[1746778737840,0.2472753,103630.0,103620.0,0.58263759]
[1746778738740,0.6080753,103630.0,103620.0,0.58263759]
[1746778739047,0.78071517,103630.0,103620.0,0.58263759]
[1746778739340,0.3005753,103630.0,103620.0,0.58263759]
[1746778739740,0.3005753,103630.0,103620.0,0.57178768]
[1746778741639,0.6613753,103630.0,103620.0,0.57178768]
[1746778742041,0.3005753,103630.0,103620.0,0.57178768]
[1746778742241,0.6613753,103630.0,103620.0,0.57178768]
[1746778742850,0.3005753,103630.0,103620.0,0.55669514]
[1746778744052,0.6613753,103630.0,103620.0,0.57144094]
[1746778744748,0.6613753,103630.0,103620.0,0.55669514]
[1746778745148,0.3005753,103630.0,103620.0,0.55669514]
[1746778745648,0.6613753,103630.0,103620.0,0.55669514]
[1746778746951,0.6613753,103630.0,103620.0,0.57178187]
[1746778747152,0.3005753,103630.0,103620.0,0.57178187]
[1746778747545,0.6613753,103630.0,103620.0,0.57178187]
[1746778748149,0.6613753,103630.0,103620.0,0.57078187]
[1746778751857,0.41511,103630.0,103620.0,0.57078187]
[1746778752244,0.6080753,103630.0,103620.0,0.57078187]
[1746778752449,0.2472753,103630.0,103620.0,0.57078187]